[Event "Titled Tuesday Blitz May 4 2021"]
[White "Gabrielian, Artur"]
[Black "Baglan, Esat"]
[WhiteFideId "4131002"]
[BlackFideId "6309216"]
[WhiteElo "2539"]
[BlackElo "2107"]
[Result "1-0"]
[Round "07"]
[TimeControl "180+1"]
[Date "2021.05.04"]
[WhiteClock "0:00:09"]
[BlackClock "0:00:23"]

1. d4 {[%clk 0:03:00]}  f5 {[%clk 0:02:54]} 2. h3 {[%clk 0:02:56]}  d5 {[%clk 0:02:53]} 3. Bf4 {[%clk 0:02:52]}  Nf6 {[%clk 0:02:52]} 4. e3 {[%clk 0:02:52]}  e6 {[%clk 0:02:52]} 5. Nf3 {[%clk 0:02:52]}  a6 {[%clk 0:02:49]} 6. Nbd2 {[%clk 0:02:51]}  c5 {[%clk 0:02:49]} 7. c4 {[%clk 0:02:48]}  Nc6 {[%clk 0:02:49]} 8. Be2 {[%clk 0:02:38]}  Be7 {[%clk 0:02:44]} 9. dxc5 {[%clk 0:02:37]}  Bxc5 {[%clk 0:02:45]} 10. O-O {[%clk 0:02:36]}  O-O {[%clk 0:02:43]} 11. Rc1 {[%clk 0:02:36]}  Bd6 {[%clk 0:02:43]} 12. Bxd6 {[%clk 0:02:35]}  Qxd6 {[%clk 0:02:43]} 13. cxd5 {[%clk 0:02:35]}  exd5 {[%clk 0:02:44]} 14. Nb3 {[%clk 0:02:24]}  f4 {[%clk 0:02:41]} 15. exf4 {[%clk 0:02:19]}  Qxf4 {[%clk 0:02:42]} 16. Nbd4 {[%clk 0:02:13]}  Bd7 {[%clk 0:02:18]} 17. Nxc6 {[%clk 0:02:07]}  bxc6 {[%clk 0:02:06]} 18. Qd4 {[%clk 0:02:06]}  Qxd4 {[%clk 0:01:49]} 19. Nxd4 {[%clk 0:02:06]}  Rfc8 {[%clk 0:01:49]} 20. Rfd1 {[%clk 0:01:50]}  c5 {[%clk 0:01:40]} 21. Nb3 {[%clk 0:01:48]}  c4 {[%clk 0:01:40]} 22. Nd4 {[%clk 0:01:41]}  Rcb8 {[%clk 0:01:39]} 23. b3 {[%clk 0:01:40]}  cxb3 {[%clk 0:01:34]} 24. axb3 {[%clk 0:01:37]}  a5 {[%clk 0:01:34]} 25. Rc7 {[%clk 0:01:32]}  a4 {[%clk 0:01:31]} 26. bxa4 {[%clk 0:01:32]}  Rxa4 {[%clk 0:01:31]} 27. Bf3 {[%clk 0:01:28]}  Rbb4 {[%clk 0:01:10]} 28. Ne2 {[%clk 0:01:05]}  Be6 {[%clk 0:01:03]} 29. Re7 {[%clk 0:01:01]}  Bf7 {[%clk 0:01:00]} 30. Rc1 {[%clk 0:00:56]}  Rc4 {[%clk 0:00:58]} 31. Rb1 {[%clk 0:00:53]}  Rab4 {[%clk 0:00:58]} 32. Ra1 {[%clk 0:00:53]}  Ra4 {[%clk 0:00:58]} 33. Rd1 {[%clk 0:00:53]}  Kf8 {[%clk 0:00:48]} 34. Rb7 {[%clk 0:00:51]}  Ne4 {[%clk 0:00:42]} 35. Rdb1 {[%clk 0:00:32]}  Nd2 {[%clk 0:00:28]} 36. Rb8+ {[%clk 0:00:32]}  Ke7 {[%clk 0:00:28]} 37. R1b7+ {[%clk 0:00:31]}  Kf6 {[%clk 0:00:20]} 38. Rb6+ {[%clk 0:00:20]}  Kg5 {[%clk 0:00:18]} 39. Ng3 {[%clk 0:00:12]}  Ra1+ {[%clk 0:00:17]} 40. Kh2 {[%clk 0:00:12]}  Nxf3+ {[%clk 0:00:17]} 41. gxf3 {[%clk 0:00:12]}  Bg6 {[%clk 0:00:18]} 42. Rf8 {[%clk 0:00:11]}  Rc2 {[%clk 0:00:18]} 43. Kg2 {[%clk 0:00:11]}  Raa2 {[%clk 0:00:18]} 44. f4+ {[%clk 0:00:11]}  Kh4 {[%clk 0:00:18]} 45. Nh1 {[%clk 0:00:11]}  Be4+ {[%clk 0:00:17]} 46. Kh2 {[%clk 0:00:11]}  Bxh1 {[%clk 0:00:17]} 47. Kxh1 {[%clk 0:00:11]}  Rxf2 {[%clk 0:00:18]} 48. Kg1 {[%clk 0:00:10]}  Rh2 {[%clk 0:00:19]} 49. Rf5 {[%clk 0:00:04]}  Rag2+ {[%clk 0:00:19]} 50. Kf1 {[%clk 0:00:04]}  Kxh3 {[%clk 0:00:16]} 51. Rh5+ {[%clk 0:00:04]}  Kg3 {[%clk 0:00:17]} 52. Rg5+ {[%clk 0:00:04]}  Kf3 {[%clk 0:00:17]} 53. Rb3+ {[%clk 0:00:04]}  Kxf4 {[%clk 0:00:17]} 54. Rxg2 {[%clk 0:00:05]}  Rh1+ {[%clk 0:00:18]} 55. Kf2 {[%clk 0:00:05]}  Rc1 {[%clk 0:00:18]} 56. Rgg3 {[%clk 0:00:05]}  Rc2+ {[%clk 0:00:17]} 57. Kf1 {[%clk 0:00:06]}  g5 {[%clk 0:00:17]} 58. Rbf3+ {[%clk 0:00:05]}  Ke4 {[%clk 0:00:18]} 59. Rf7 {[%clk 0:00:06]}  h5 {[%clk 0:00:17]} 60. Rxg5 {[%clk 0:00:06]}  h4 {[%clk 0:00:17]} 61. Rg4+ {[%clk 0:00:06]}  Ke5 {[%clk 0:00:18]} 62. Rxh4 {[%clk 0:00:06]}  Rc1+ {[%clk 0:00:19]} 63. Ke2 {[%clk 0:00:07]}  Rc2+ {[%clk 0:00:20]} 64. Kd3 {[%clk 0:00:07]}  Ra2 {[%clk 0:00:20]} 65. Re7+ {[%clk 0:00:07]}  Kd6 {[%clk 0:00:21]} 66. Reh7 {[%clk 0:00:08]}  Ra3+ {[%clk 0:00:22]} 67. Kc2 {[%clk 0:00:08]}  Ra2+ {[%clk 0:00:22]} 68. Kb3 {[%clk 0:00:09]}  Re2 {[%clk 0:00:23]} 69. R4h6+ {[%clk 0:00:09]}  Kc5 {[%clk 0:00:23]} 70. Rc7+ {[%clk 0:00:09]}  Kd4 {[%clk 0:00:23]} 71. Rh4+ {[%clk 0:00:09]}  Ke5 {[%clk 0:00:23]} 72. Re7+ {[%clk 0:00:09]} 1-0


[Site "https://www.chess.com"]

[Event "Titled Tuesday Blitz May 4 2021"]
[White "Garcia Fuentes, Sergio Miguel"]
[Black "Wilson, Elvin"]
[WhiteFideId "7300549"]
[BlackFideId "2014874"]
[WhiteElo "2167"]
[BlackElo "2233"]
[Result "1-0"]
[Round "07"]
[TimeControl "180+1"]
[Date "2021.05.04"]
[WhiteClock "0:00:01"]
[BlackClock "0:00:01"]

1. Nf3 {[%clk 0:03:00]}  Nf6 {[%clk 0:02:58]} 2. g3 {[%clk 0:03:00]}  d5 {[%clk 0:02:57]} 3. Bg2 {[%clk 0:03:01]}  e6 {[%clk 0:02:51]} 4. O-O {[%clk 0:03:00]}  c5 {[%clk 0:02:52]} 5. d4 {[%clk 0:03:00]}  Nc6 {[%clk 0:02:50]} 6. c4 {[%clk 0:03:00]}  dxc4 {[%clk 0:02:45]} 7. Qa4 {[%clk 0:02:55]}  Bd7 {[%clk 0:02:41]} 8. dxc5 {[%clk 0:02:52]}  Bxc5 {[%clk 0:02:40]} 9. Qxc4 {[%clk 0:02:51]}  Qe7 {[%clk 0:02:27]} 10. Nc3 {[%clk 0:02:36]}  O-O {[%clk 0:02:24]} 11. Bg5 {[%clk 0:02:35]}  h6 {[%clk 0:02:19]} 12. Bxf6 {[%clk 0:02:34]}  gxf6 {[%clk 0:02:20]} 13. Qh4 {[%clk 0:01:58]}  Kg7 {[%clk 0:02:09]} 14. Rad1 {[%clk 0:01:51]}  Rfd8 {[%clk 0:02:04]} 15. Ne4 {[%clk 0:01:45]}  Bb6 {[%clk 0:01:56]} 16. Nd6 {[%clk 0:01:37]}  Rab8 {[%clk 0:01:51]} 17. e4 {[%clk 0:01:29]}  f5 {[%clk 0:01:35]} 18. exf5 {[%clk 0:01:26]}  exf5 {[%clk 0:01:27]} 19. Qf4 {[%clk 0:01:16]}  Qf6 {[%clk 0:01:19]} 20. Rd5 {[%clk 0:01:05]}  Ne7 {[%clk 0:01:13]} 21. Rd2 {[%clk 0:01:01]}  Ng6 {[%clk 0:01:01]} 22. Qb4 {[%clk 0:00:49]}  Bc6 {[%clk 0:00:55]} 23. Rfd1 {[%clk 0:00:39]}  f4 {[%clk 0:00:48]} 24. Kh1 {[%clk 0:00:34]}  fxg3 {[%clk 0:00:45]} 25. fxg3 {[%clk 0:00:28]}  Bxf3 {[%clk 0:00:39]} 26. Rf1 {[%clk 0:00:27]}  Bxg2+ {[%clk 0:00:22]} 27. Kxg2 {[%clk 0:00:27]}  Qe6 {[%clk 0:00:21]} 28. Rxf7+ {[%clk 0:00:23]}  Qxf7 {[%clk 0:00:21]} 29. Nxf7 {[%clk 0:00:22]}  Rxd2+ {[%clk 0:00:21]} 30. Qxd2 {[%clk 0:00:21]}  Kxf7 {[%clk 0:00:22]} 31. Qd5+ {[%clk 0:00:21]}  Kg7 {[%clk 0:00:19]} 32. h4 {[%clk 0:00:20]}  Rd8 {[%clk 0:00:19]} 33. Qxb7+ {[%clk 0:00:20]}  Kg8 {[%clk 0:00:16]} 34. h5 {[%clk 0:00:20]}  Nf8 {[%clk 0:00:16]} 35. Qe7 {[%clk 0:00:18]}  Rd5 {[%clk 0:00:12]} 36. g4 {[%clk 0:00:16]}  Rg5 {[%clk 0:00:12]} 37. Kf3 {[%clk 0:00:14]}  Rg7 {[%clk 0:00:11]} 38. Qe5 {[%clk 0:00:13]}  Kf7 {[%clk 0:00:10]} 39. Qd5+ {[%clk 0:00:12]}  Ne6 {[%clk 0:00:10]} 40. b4 {[%clk 0:00:11]}  Kf6 {[%clk 0:00:10]} 41. Qf5+ {[%clk 0:00:10]}  Ke7 {[%clk 0:00:09]} 42. Ke4 {[%clk 0:00:09]}  Ng5+ {[%clk 0:00:08]} 43. Kd3 {[%clk 0:00:09]}  Kd8 {[%clk 0:00:08]} 44. Qf6+ {[%clk 0:00:08]}  Re7 {[%clk 0:00:08]} 45. Qxh6 {[%clk 0:00:08]}  Rd7+ {[%clk 0:00:09]} 46. Kc2 {[%clk 0:00:08]}  Nf7 {[%clk 0:00:09]} 47. Qg7 {[%clk 0:00:07]}  Kc7 {[%clk 0:00:09]} 48. h6 {[%clk 0:00:08]}  Bd4 {[%clk 0:00:06]} 49. Qg6 {[%clk 0:00:07]}  Nh8 {[%clk 0:00:06]} 50. Qf5 {[%clk 0:00:07]}  Nf7 {[%clk 0:00:06]} 51. g5 {[%clk 0:00:07]}  Nd6 {[%clk 0:00:05]} 52. Qd5 {[%clk 0:00:06]}  Nf7 {[%clk 0:00:04]} 53. Qc4+ {[%clk 0:00:06]}  Kd8 {[%clk 0:00:04]} 54. Qe6 {[%clk 0:00:05]}  Rc7+ {[%clk 0:00:03]} 55. Kb3 {[%clk 0:00:05]}  Re7 {[%clk 0:00:03]} 56. Qa6 {[%clk 0:00:04]}  Nxg5 {[%clk 0:00:03]} 57. Qd3 {[%clk 0:00:04]}  Nh7 {[%clk 0:00:02]} 58. Qxd4+ {[%clk 0:00:04]}  Rd7 {[%clk 0:00:03]} 59. Qh8+ {[%clk 0:00:04]}  Kc7 {[%clk 0:00:03]} 60. Qc3+ {[%clk 0:00:03]}  Kb7 {[%clk 0:00:03]} 61. a4 {[%clk 0:00:04]}  a6 {[%clk 0:00:03]} 62. b5 {[%clk 0:00:04]}  Rc7 {[%clk 0:00:04]} 63. Qf3+ {[%clk 0:00:04]}  Kb6 {[%clk 0:00:03]} 64. Qe3+ {[%clk 0:00:04]}  Kb7 {[%clk 0:00:04]} 65. Qe6 {[%clk 0:00:04]}  axb5 {[%clk 0:00:03]} 66. axb5 {[%clk 0:00:03]}  Kb8 {[%clk 0:00:04]} 67. Qa6 {[%clk 0:00:01]}  Rb7 {[%clk 0:00:04]} 68. Kb4 {[%clk 0:00:01]}  Rc7 {[%clk 0:00:04]} 69. Qd6 {[%clk 0:00:01]}  Kb7 {[%clk 0:00:03]} 70. Ka5 {[%clk 0:00:02]}  Rf7 {[%clk 0:00:03]} 71. b6 {[%clk 0:00:02]}  Nf6 {[%clk 0:00:03]} 72. Qc5 {[%clk 0:00:02]}  Ne8 {[%clk 0:00:01]} 73. Qb5 {[%clk 0:00:01]}  Nd6 {[%clk 0:00:01]} 74. Qd5+ {[%clk 0:00:01]} 1-0


[Site "https://www.chess.com"]

[Event "Titled Tuesday Blitz May 4 2021"]
[White "Gelman, Alexander"]
[Black "Jian, Alex"]
[WhiteFideId "4118316"]
[BlackFideId "30901022"]
[WhiteElo "2375"]
[BlackElo "2084"]
[Result "1-0"]
[Round "07"]
[TimeControl "180+1"]
[Date "2021.05.04"]
[WhiteClock "0:00:37"]
[BlackClock "0:00:07"]

1. d4 {[%clk 0:03:00]}  Nf6 {[%clk 0:02:59]} 2. Nc3 {[%clk 0:03:00]}  d5 {[%clk 0:02:59]} 3. Bf4 {[%clk 0:03:00]}  a6 {[%clk 0:02:58]} 4. e3 {[%clk 0:03:00]}  e6 {[%clk 0:02:56]} 5. g4 {[%clk 0:03:00]}  h6 {[%clk 0:02:53]} 6. Bg2 {[%clk 0:02:55]}  c5 {[%clk 0:02:51]} 7. h4 {[%clk 0:02:54]}  Nc6 {[%clk 0:02:40]} 8. g5 {[%clk 0:02:47]}  hxg5 {[%clk 0:02:38]} 9. hxg5 {[%clk 0:02:48]}  Rxh1 {[%clk 0:02:38]} 10. Bxh1 {[%clk 0:02:48]}  Nd7 {[%clk 0:02:36]} 11. Qh5 {[%clk 0:02:46]}  g6 {[%clk 0:02:36]} 12. Qh8 {[%clk 0:02:31]}  cxd4 {[%clk 0:02:30]} 13. exd4 {[%clk 0:02:31]}  Qb6 {[%clk 0:02:30]} 14. O-O-O {[%clk 0:02:31]}  Na5 {[%clk 0:02:10]} 15. Bxd5 {[%clk 0:02:28]}  Kd8 {[%clk 0:01:05]} 16. Nf3 {[%clk 0:02:12]}  Nc6 {[%clk 0:00:52]} 17. Bb3 {[%clk 0:01:55]}  Na5 {[%clk 0:00:36]} 18. Ne5 {[%clk 0:01:37]}  Nxb3+ {[%clk 0:00:34]} 19. axb3 {[%clk 0:01:36]}  Ke7 {[%clk 0:00:27]} 20. d5 {[%clk 0:01:24]}  Qxf2 {[%clk 0:00:22]} 21. Bh2 {[%clk 0:00:50]}  Qe3+ {[%clk 0:00:12]} 22. Kb1 {[%clk 0:00:49]}  Nxe5 {[%clk 0:00:11]} 23. Bxe5 {[%clk 0:00:48]}  Qxg5 {[%clk 0:00:11]} 24. Bf6+ {[%clk 0:00:36]}  Qxf6 {[%clk 0:00:08]} 25. d6+ {[%clk 0:00:36]}  Kd7 {[%clk 0:00:07]} 26. Qxf6 {[%clk 0:00:37]}  b5 {[%clk 0:00:07]} 27. Qxf7+ {[%clk 0:00:37]}  Kc6 {[%clk 0:00:07]} 28. Qc7# {[%clk 0:00:37]} 1-0


[Site "https://www.chess.com"]

[Event "Titled Tuesday Blitz May 4 2021"]
[White "Golizadeh, Asghar"]
[Black "Moore, Nicholas"]
[WhiteFideId "12505269"]
[BlackFideId "4303709"]
[WhiteElo "2403"]
[BlackElo "2370"]
[Result "1/2-1/2"]
[Round "07"]
[TimeControl "180+1"]
[Date "2021.05.04"]
[WhiteClock "0:00:04"]
[BlackClock "0:00:08"]

1. e4 {[%clk 0:03:00]}  c5 {[%clk 0:03:00]} 2. Nf3 {[%clk 0:03:01]}  e6 {[%clk 0:03:00]} 3. d3 {[%clk 0:03:01]}  Nc6 {[%clk 0:02:58]} 4. g3 {[%clk 0:03:01]}  Nf6 {[%clk 0:02:58]} 5. Bg2 {[%clk 0:03:01]}  d5 {[%clk 0:02:58]} 6. Qe2 {[%clk 0:03:01]}  dxe4 {[%clk 0:02:57]} 7. dxe4 {[%clk 0:03:02]}  Be7 {[%clk 0:02:57]} 8. c3 {[%clk 0:03:02]}  O-O {[%clk 0:02:57]} 9. O-O {[%clk 0:03:03]}  b6 {[%clk 0:02:57]} 10. Na3 {[%clk 0:03:01]}  Bb7 {[%clk 0:02:52]} 11. Rd1 {[%clk 0:02:58]}  Qc7 {[%clk 0:02:52]} 12. Bf4 {[%clk 0:02:56]}  e5 {[%clk 0:02:51]} 13. Bg5 {[%clk 0:02:56]}  Ne8 {[%clk 0:02:28]} 14. Bxe7 {[%clk 0:02:55]}  Qxe7 {[%clk 0:02:28]} 15. Nh4 {[%clk 0:02:52]}  Nd6 {[%clk 0:02:24]} 16. Qg4 {[%clk 0:02:42]}  Bc8 {[%clk 0:02:21]} 17. Qe2 {[%clk 0:02:34]}  Be6 {[%clk 0:02:01]} 18. Rd2 {[%clk 0:01:52]}  Rad8 {[%clk 0:01:49]} 19. b3 {[%clk 0:01:52]}  Rd7 {[%clk 0:01:34]} 20. Rad1 {[%clk 0:01:50]}  Rfd8 {[%clk 0:01:34]} 21. Nc2 {[%clk 0:01:45]}  Ne8 {[%clk 0:01:19]} 22. Ne3 {[%clk 0:01:41]}  Rxd2 {[%clk 0:01:17]} 23. Rxd2 {[%clk 0:01:42]}  Rxd2 {[%clk 0:01:16]} 24. Qxd2 {[%clk 0:01:43]}  Qd6 {[%clk 0:01:17]} 25. Nd5 {[%clk 0:01:32]}  Bxd5 {[%clk 0:01:15]} 26. Nf5 {[%clk 0:01:25]}  Qd7 {[%clk 0:01:08]} 27. exd5 {[%clk 0:01:23]}  Ne7 {[%clk 0:01:05]} 28. Ne3 {[%clk 0:01:05]}  Nd6 {[%clk 0:01:00]} 29. h4 {[%clk 0:01:00]}  h6 {[%clk 0:00:51]} 30. Kh2 {[%clk 0:00:57]}  Qd8 {[%clk 0:00:47]} 31. Qd3 {[%clk 0:00:55]}  Ng6 {[%clk 0:00:44]} 32. c4 {[%clk 0:00:47]}  Qf6 {[%clk 0:00:39]} 33. Ng4 {[%clk 0:00:43]}  Qf5 {[%clk 0:00:33]} 34. Qxf5 {[%clk 0:00:42]}  Nxf5 {[%clk 0:00:33]} 35. Be4 {[%clk 0:00:43]}  Nge7 {[%clk 0:00:27]} 36. Nxe5 {[%clk 0:00:42]}  Nd6 {[%clk 0:00:27]} 37. Bd3 {[%clk 0:00:38]}  g6 {[%clk 0:00:19]} 38. Kg2 {[%clk 0:00:37]}  Kg7 {[%clk 0:00:19]} 39. f4 {[%clk 0:00:38]}  h5 {[%clk 0:00:18]} 40. Kf3 {[%clk 0:00:37]}  Kf6 {[%clk 0:00:18]} 41. a3 {[%clk 0:00:34]}  Nec8 {[%clk 0:00:08]} 42. Nc6 {[%clk 0:00:31]}  a5 {[%clk 0:00:06]} 43. b4 {[%clk 0:00:21]}  axb4 {[%clk 0:00:06]} 44. axb4 {[%clk 0:00:22]}  Ne7 {[%clk 0:00:07]} 45. bxc5 {[%clk 0:00:18]}  bxc5 {[%clk 0:00:06]} 46. Ne5 {[%clk 0:00:18]}  Nec8 {[%clk 0:00:06]} 47. Nd7+ {[%clk 0:00:18]}  Ke7 {[%clk 0:00:07]} 48. Nxc5 {[%clk 0:00:19]}  Nb6 {[%clk 0:00:07]} 49. Nb3 {[%clk 0:00:10]}  Nbxc4 {[%clk 0:00:08]} 50. Nd4 {[%clk 0:00:11]}  Kf6 {[%clk 0:00:06]} 51. Ne2 {[%clk 0:00:08]}  Nb6 {[%clk 0:00:06]} 52. Nc3 {[%clk 0:00:08]}  Ke7 {[%clk 0:00:04]} 53. Ke3 {[%clk 0:00:07]}  Ndc8 {[%clk 0:00:04]} 54. Kd4 {[%clk 0:00:07]}  Nd6 {[%clk 0:00:04]} 55. Bc2 {[%clk 0:00:08]}  Kf6 {[%clk 0:00:04]} 56. Bd3 {[%clk 0:00:07]}  Ke7 {[%clk 0:00:04]} 57. Kc5 {[%clk 0:00:07]}  Nd7+ {[%clk 0:00:05]} 58. Kd4 {[%clk 0:00:07]}  Nf6 {[%clk 0:00:06]} 59. Ne4 {[%clk 0:00:06]}  Nfxe4 {[%clk 0:00:06]} 60. Bxe4 {[%clk 0:00:07]}  Kf6 {[%clk 0:00:06]} 61. Bd3 {[%clk 0:00:06]}  Ke7 {[%clk 0:00:06]} 62. Kc5 {[%clk 0:00:07]}  Kd7 {[%clk 0:00:06]} 63. Bc2 {[%clk 0:00:05]}  Kc7 {[%clk 0:00:07]} 64. Ba4 {[%clk 0:00:06]}  Nf5 {[%clk 0:00:07]} 65. Bc2 {[%clk 0:00:05]}  Nxg3 {[%clk 0:00:07]} 66. d6+ {[%clk 0:00:06]}  Kd8 {[%clk 0:00:07]} 67. Bb3 {[%clk 0:00:04]}  Ne2 {[%clk 0:00:07]} 68. Bxf7 {[%clk 0:00:04]}  Nxf4 {[%clk 0:00:07]} 69. Kc6 {[%clk 0:00:04]}  Ng2 {[%clk 0:00:07]} 70. Bxg6 {[%clk 0:00:03]}  Nxh4 {[%clk 0:00:07]} 71. Bxh5 {[%clk 0:00:03]}  Nf5 {[%clk 0:00:08]} 72. Bg4 {[%clk 0:00:04]}  Ne3 {[%clk 0:00:08]} 73. Be6 {[%clk 0:00:03]}  Ng2 {[%clk 0:00:07]} 74. Bf5 {[%clk 0:00:03]}  Nf4 {[%clk 0:00:07]} 75. Be4 {[%clk 0:00:02]}  Nh5 {[%clk 0:00:07]} 76. Bf5 {[%clk 0:00:03]}  Nf6 {[%clk 0:00:07]} 77. Bd3 {[%clk 0:00:04]}  Ne8 {[%clk 0:00:07]} 78. Bf5 {[%clk 0:00:04]}  Nxd6 {[%clk 0:00:08]} 1/2-1/2


[Site "https://www.chess.com"]

[Event "Titled Tuesday Blitz May 4 2021"]
[White "Gombocz, Ferenc Jr."]
[Black "Ismayil, Malak"]
[WhiteFideId "775029"]
[BlackFideId "13412604"]
[WhiteElo "1913"]
[BlackElo "1879"]
[Result "1-0"]
[Round "07"]
[TimeControl "180+1"]
[Date "2021.05.04"]
[WhiteClock "0:00:03"]
[BlackClock "0:00:02"]

1. c4 {[%clk 0:03:00]}  e5 {[%clk 0:02:52]} 2. g3 {[%clk 0:02:58]}  Nf6 {[%clk 0:02:47]} 3. Bg2 {[%clk 0:02:53]}  d5 {[%clk 0:02:45]} 4. cxd5 {[%clk 0:02:52]}  Nxd5 {[%clk 0:02:46]} 5. Nc3 {[%clk 0:02:51]}  Nxc3 {[%clk 0:02:42]} 6. bxc3 {[%clk 0:02:33]}  Nc6 {[%clk 0:02:41]} 7. Bxc6+ {[%clk 0:02:28]}  bxc6 {[%clk 0:02:40]} 8. Nf3 {[%clk 0:02:28]}  Bd6 {[%clk 0:02:37]} 9. d4 {[%clk 0:02:24]}  e4 {[%clk 0:02:30]} 10. Ng5 {[%clk 0:02:17]}  Qe7 {[%clk 0:02:24]} 11. d5 {[%clk 0:01:25]}  c5 {[%clk 0:02:15]} 12. Qa4+ {[%clk 0:01:22]}  Bd7 {[%clk 0:02:10]} 13. Qxe4 {[%clk 0:01:21]}  Qxe4 {[%clk 0:02:06]} 14. Nxe4 {[%clk 0:01:07]}  f5 {[%clk 0:02:03]} 15. Nd2 {[%clk 0:00:57]}  Be5 {[%clk 0:02:00]} 16. Bb2 {[%clk 0:00:50]}  Rb8 {[%clk 0:01:59]} 17. O-O-O {[%clk 0:00:50]}  Bb5 {[%clk 0:01:55]} 18. Rhe1 {[%clk 0:00:47]}  Kf7 {[%clk 0:01:53]} 19. Nb3 {[%clk 0:00:40]}  Bd6 {[%clk 0:01:41]} 20. e4 {[%clk 0:00:27]}  fxe4 {[%clk 0:01:37]} 21. Rxe4 {[%clk 0:00:26]}  Rhe8 {[%clk 0:01:35]} 22. Rde1 {[%clk 0:00:24]}  Rxe4 {[%clk 0:01:31]} 23. Rxe4 {[%clk 0:00:23]}  Bd3 {[%clk 0:01:31]} 24. Re3 {[%clk 0:00:22]}  Bc4 {[%clk 0:01:23]} 25. Ba3 {[%clk 0:00:18]}  Bxb3 {[%clk 0:01:14]} 26. axb3 {[%clk 0:00:18]}  Rxb3 {[%clk 0:01:14]} 27. Bb2 {[%clk 0:00:19]}  a5 {[%clk 0:01:12]} 28. Kc2 {[%clk 0:00:19]}  Rb8 {[%clk 0:01:05]} 29. Re4 {[%clk 0:00:18]}  Re8 {[%clk 0:01:04]} 30. Rxe8 {[%clk 0:00:10]}  Kxe8 {[%clk 0:01:05]} 31. Kb3 {[%clk 0:00:08]}  Kf7 {[%clk 0:00:55]} 32. c4 {[%clk 0:00:06]}  g5 {[%clk 0:00:41]} 33. h3 {[%clk 0:00:04]}  Kg6 {[%clk 0:00:41]} 34. g4 {[%clk 0:00:01]}  Bf4 {[%clk 0:00:37]} 35. Ka4 {[%clk 0:00:02]}  Bd2 {[%clk 0:00:33]} 36. Ba3 {[%clk 0:00:02]}  Bb4 {[%clk 0:00:31]} 37. Bb2 {[%clk 0:00:02]}  h5 {[%clk 0:00:27]} 38. f3 {[%clk 0:00:02]}  hxg4 {[%clk 0:00:26]} 39. hxg4 {[%clk 0:00:02]}  Kf7 {[%clk 0:00:26]} 40. Be5 {[%clk 0:00:02]}  Ke7 {[%clk 0:00:19]} 41. Bxc7 {[%clk 0:00:02]}  Kd7 {[%clk 0:00:19]} 42. Be5 {[%clk 0:00:03]}  Bd2 {[%clk 0:00:19]} 43. Bf6 {[%clk 0:00:03]}  Kd6 {[%clk 0:00:16]} 44. Bd8 {[%clk 0:00:03]}  Ke5 {[%clk 0:00:15]} 45. Bxa5 {[%clk 0:00:04]}  Be3 {[%clk 0:00:13]} 46. Kb5 {[%clk 0:00:04]}  Kf4 {[%clk 0:00:11]} 47. Bb6 {[%clk 0:00:04]}  Kxf3 {[%clk 0:00:11]} 48. Bxc5 {[%clk 0:00:04]}  Bf4 {[%clk 0:00:11]} 49. Be7 {[%clk 0:00:04]}  Kxg4 {[%clk 0:00:11]} 50. c5 {[%clk 0:00:04]}  Kh3 {[%clk 0:00:10]} 51. Bxg5 {[%clk 0:00:03]}  Bxg5 {[%clk 0:00:10]} 52. d6 {[%clk 0:00:04]}  Kg4 {[%clk 0:00:09]} 53. c6 {[%clk 0:00:04]}  Kf5 {[%clk 0:00:09]} 54. c7 {[%clk 0:00:04]}  Ke6 {[%clk 0:00:06]} 55. c8=Q+ {[%clk 0:00:05]}  Kxd6 {[%clk 0:00:07]} 56. Qc6+ {[%clk 0:00:04]}  Ke5 {[%clk 0:00:06]} 57. Qg6 {[%clk 0:00:03]}  Kf4 {[%clk 0:00:04]} 58. Kc4 {[%clk 0:00:03]}  Bh4 {[%clk 0:00:02]} 59. Kd3 {[%clk 0:00:03]} 1-0


[Site "https://www.chess.com"]

[Event "Titled Tuesday Blitz May 4 2021"]
[White "Grineva, Marianna"]
[Black "Mayeregger, Arnold"]
[WhiteFideId "14102013"]
[BlackFideId "3705226"]
[WhiteElo "1925"]
[BlackElo "1567"]
[Result "1-0"]
[Round "07"]
[TimeControl "180+1"]
[Date "2021.05.04"]
[WhiteClock "0:00:09"]
[BlackClock "0:00:02"]

1. e4 {[%clk 0:03:00]}  c5 {[%clk 0:02:58]} 2. Nf3 {[%clk 0:03:00]}  e6 {[%clk 0:02:58]} 3. Nc3 {[%clk 0:03:00]}  a6 {[%clk 0:02:56]} 4. d4 {[%clk 0:03:00]}  cxd4 {[%clk 0:02:57]} 5. Nxd4 {[%clk 0:02:59]}  Qc7 {[%clk 0:02:58]} 6. Bd3 {[%clk 0:02:55]}  Nf6 {[%clk 0:02:58]} 7. f4 {[%clk 0:02:53]}  d6 {[%clk 0:02:57]} 8. Qf3 {[%clk 0:02:52]}  Be7 {[%clk 0:02:56]} 9. O-O {[%clk 0:02:47]}  O-O {[%clk 0:02:53]} 10. Kh1 {[%clk 0:02:47]}  Nbd7 {[%clk 0:02:52]} 11. Bd2 {[%clk 0:02:47]}  Rb8 {[%clk 0:02:48]} 12. Rae1 {[%clk 0:02:47]}  b5 {[%clk 0:02:47]} 13. e5 {[%clk 0:02:37]}  dxe5 {[%clk 0:02:42]} 14. fxe5 {[%clk 0:02:37]}  Nxe5 {[%clk 0:02:41]} 15. Rxe5 {[%clk 0:02:24]}  Qxe5 {[%clk 0:02:39]} 16. Nc6 {[%clk 0:02:24]}  Qc7 {[%clk 0:02:30]} 17. Nxb8 {[%clk 0:02:17]}  Qxb8 {[%clk 0:02:29]} 18. Ne4 {[%clk 0:02:07]}  Bb7 {[%clk 0:02:23]} 19. Nxf6+ {[%clk 0:02:03]}  Bxf6 {[%clk 0:02:24]} 20. Qh3 {[%clk 0:02:04]}  h5 {[%clk 0:01:50]} 21. Qxh5 {[%clk 0:01:57]}  g6 {[%clk 0:01:35]} 22. Qh3 {[%clk 0:00:53]}  Bg7 {[%clk 0:01:34]} 23. Bh6 {[%clk 0:00:50]}  Qe5 {[%clk 0:01:32]} 24. b3 {[%clk 0:00:35]}  Rd8 {[%clk 0:01:24]} 25. Bf4 {[%clk 0:00:31]}  Qd5 {[%clk 0:01:19]} 26. Qg3 {[%clk 0:00:26]}  b4 {[%clk 0:01:09]} 27. h3 {[%clk 0:00:25]}  a5 {[%clk 0:01:05]} 28. Bg5 {[%clk 0:00:22]}  Rc8 {[%clk 0:01:02]} 29. Bf6 {[%clk 0:00:20]}  Bxf6 {[%clk 0:00:45]} 30. Rxf6 {[%clk 0:00:21]}  Qd4 {[%clk 0:00:45]} 31. Rf4 {[%clk 0:00:17]}  Qg7 {[%clk 0:00:41]} 32. Qf2 {[%clk 0:00:16]}  Rd8 {[%clk 0:00:35]} 33. Kh2 {[%clk 0:00:14]}  Bd5 {[%clk 0:00:33]} 34. Qe3 {[%clk 0:00:15]}  Rc8 {[%clk 0:00:30]} 35. Rd4 {[%clk 0:00:15]}  Rd8 {[%clk 0:00:27]} 36. Rg4 {[%clk 0:00:14]}  Rc8 {[%clk 0:00:25]} 37. Qb6 {[%clk 0:00:13]}  Ra8 {[%clk 0:00:24]} 38. Qc7 {[%clk 0:00:12]}  Qf6 {[%clk 0:00:22]} 39. Rg3 {[%clk 0:00:12]}  Qg7 {[%clk 0:00:20]} 40. Qd6 {[%clk 0:00:09]}  Qf6 {[%clk 0:00:17]} 41. a3 {[%clk 0:00:09]}  bxa3 {[%clk 0:00:16]} 42. Qxa3 {[%clk 0:00:10]}  Qe5 {[%clk 0:00:16]} 43. Qe7 {[%clk 0:00:11]}  a4 {[%clk 0:00:13]} 44. bxa4 {[%clk 0:00:10]}  Rxa4 {[%clk 0:00:13]} 45. Qe8+ {[%clk 0:00:10]}  Kg7 {[%clk 0:00:11]} 46. Qxa4 {[%clk 0:00:11]}  f5 {[%clk 0:00:11]} 47. Qh4 {[%clk 0:00:11]}  f4 {[%clk 0:00:10]} 48. Qe7+ {[%clk 0:00:11]}  Kh6 {[%clk 0:00:10]} 49. Qh4+ {[%clk 0:00:11]}  Kg7 {[%clk 0:00:09]} 50. Rg5 {[%clk 0:00:11]}  Qd6 {[%clk 0:00:09]} 51. Rxg6+ {[%clk 0:00:10]}  Kf8 {[%clk 0:00:05]} 52. Qh8+ {[%clk 0:00:10]}  Ke7 {[%clk 0:00:04]} 53. Rg7+ {[%clk 0:00:11]}  Kf6 {[%clk 0:00:05]} 54. Qh6+ {[%clk 0:00:11]}  Ke5 {[%clk 0:00:04]} 55. Rg5+ {[%clk 0:00:11]}  Kd4 {[%clk 0:00:04]} 56. Rg4 {[%clk 0:00:11]}  Ke3 {[%clk 0:00:02]} 57. h4 {[%clk 0:00:09]} 1-0


[Site "https://www.chess.com"]